[Event "November 21 Late 2023"]
[Site "https://www.chess.com"]
[Date "2023.11.21"]
[Round "11"]
[White "Osmak, Yuliia"]
[Black "Vadim_Galchenko"]
[Result "0-1"]
[Board "45"]
[TimeControl "180+1"]
[WhiteFideId "14101602"]
[WhiteElo "2303"]
[BlackElo "2565"]
[WhiteTeam "UKR"]
[WhiteClock "0:00:00"]
[BlackClock "0:00:46"]

1. e4 {[%clk 0:03:00]}  e6 {[%clk 0:02:59]} 2. d4 {[%clk 0:03:00]}  d5 {[%clk 0:03:00]} 3. exd5 {[%clk 0:03:01]}  exd5 {[%clk 0:03:01]} 4. Bd3 {[%clk 0:03:00]}  Nc6 {[%clk 0:02:57]} 5. Nf3 {[%clk 0:03:00]}  Bd6 {[%clk 0:02:57]} 6. O-O {[%clk 0:02:56]}  Nge7 {[%clk 0:02:57]} 7. c3 {[%clk 0:02:55]}  Bg4 {[%clk 0:02:57]} 8. Re1 {[%clk 0:02:49]}  Qd7 {[%clk 0:02:56]} 9. Nbd2 {[%clk 0:02:46]}  O-O {[%clk 0:02:56]} 10. h3 {[%clk 0:02:40]}  Bf5 {[%clk 0:02:54]} 11. Bf1 {[%clk 0:02:38]}  Rae8 {[%clk 0:02:51]} 12. Nb3 {[%clk 0:02:31]}  Ng6 {[%clk 0:02:46]} 13. Be3 {[%clk 0:02:29]}  Qc8 {[%clk 0:02:37]} 14. Qd2 {[%clk 0:02:22]}  f6 {[%clk 0:02:34]} 15. Nc5 {[%clk 0:01:58]}  b6 {[%clk 0:02:31]} 16. Ba6 {[%clk 0:01:46]}  Qd8 {[%clk 0:02:13]} 17. Nb7 {[%clk 0:01:43]}  Qd7 {[%clk 0:02:13]} 18. Nxd6 {[%clk 0:01:43]}  Qxd6 {[%clk 0:02:14]} 19. Bb5 {[%clk 0:01:39]}  Re7 {[%clk 0:02:10]} 20. Re2 {[%clk 0:01:33]}  Nb8 {[%clk 0:02:03]} 21. Rae1 {[%clk 0:01:31]}  c6 {[%clk 0:02:01]} 22. Ba4 {[%clk 0:01:30]}  Rfe8 {[%clk 0:02:00]} 23. Qd1 {[%clk 0:01:21]}  b5 {[%clk 0:01:48]} 24. Bb3 {[%clk 0:01:19]}  Nd7 {[%clk 0:01:46]} 25. Bc1 {[%clk 0:01:11]}  Nb6 {[%clk 0:01:38]} 26. Rxe7 {[%clk 0:01:10]}  Rxe7 {[%clk 0:01:39]} 27. Rxe7 {[%clk 0:01:10]}  Qxe7 {[%clk 0:01:40]} 28. Qe1 {[%clk 0:00:52]}  Qd7 {[%clk 0:01:34]} 29. Bd1 {[%clk 0:00:45]}  Nc4 {[%clk 0:01:27]} 30. b3 {[%clk 0:00:44]}  Nd6 {[%clk 0:01:27]} 31. Nd2 {[%clk 0:00:38]}  Nf4 {[%clk 0:01:20]} 32. Ba3 {[%clk 0:00:28]}  Ne4 {[%clk 0:01:04]} 33. Nxe4 {[%clk 0:00:23]}  Bxe4 {[%clk 0:01:05]} 34. f3 {[%clk 0:00:22]}  Bf5 {[%clk 0:00:58]} 35. Qe3 {[%clk 0:00:16]}  Ne6 {[%clk 0:00:54]} 36. g4 {[%clk 0:00:15]}  Bg6 {[%clk 0:00:54]} 37. h4 {[%clk 0:00:14]}  Bb1 {[%clk 0:00:51]} 38. Qc1 {[%clk 0:00:11]}  Bg6 {[%clk 0:00:50]} 39. Kf2 {[%clk 0:00:07]}  h5 {[%clk 0:00:50]} 40. Qe3 {[%clk 0:00:06]}  Kf7 {[%clk 0:00:48]} 41. Be2 {[%clk 0:00:05]}  Qc7 {[%clk 0:00:47]} 42. Kg1 {[%clk 0:00:04]}  Qg3+ {[%clk 0:00:46]} 43. Kf1 {[%clk 0:00:00]}  hxg4 {[%clk 0:00:46]} 0-1

[Event "November 21 Late 2023"]
[Site "https://www.chess.com"]
[Date "2023.11.21"]
[Round "11"]
[White "Gurevich, Dmitry"]
[Black "Deng, Henry"]
[Result "0-1"]
[Board "46"]
[TimeControl "180+1"]
[WhiteFideId "2000407"]
[BlackFideId "30965454"]
[WhiteElo "2506"]
[BlackElo "2558"]
[WhiteTeam "USA"]
[BlackTeam "USA"]
[WhiteClock "0:00:04"]
[BlackClock "0:00:45"]

1. d4 {[%clk 0:03:00]}  d5 {[%clk 0:02:56]} 2. c4 {[%clk 0:03:00]}  c6 {[%clk 0:02:56]} 3. e3 {[%clk 0:02:59]}  Nf6 {[%clk 0:02:55]} 4. Nc3 {[%clk 0:02:58]}  e6 {[%clk 0:02:54]} 5. Nf3 {[%clk 0:02:58]}  Nbd7 {[%clk 0:02:55]} 6. Bd2 {[%clk 0:02:55]}  Be7 {[%clk 0:02:52]} 7. Bd3 {[%clk 0:02:54]}  dxc4 {[%clk 0:02:52]} 8. Bxc4 {[%clk 0:02:54]}  b5 {[%clk 0:02:53]} 9. Bb3 {[%clk 0:02:53]}  O-O {[%clk 0:02:51]} 10. a3 {[%clk 0:02:46]}  a5 {[%clk 0:02:49]} 11. e4 {[%clk 0:02:45]}  Bb7 {[%clk 0:02:32]} 12. e5 {[%clk 0:02:45]}  Nd5 {[%clk 0:02:32]} 13. Nxd5 {[%clk 0:02:37]}  cxd5 {[%clk 0:02:30]} 14. O-O {[%clk 0:02:36]}  Ba6 {[%clk 0:02:24]} 15. Re1 {[%clk 0:02:35]}  b4 {[%clk 0:02:20]} 16. axb4 {[%clk 0:02:31]}  axb4 {[%clk 0:02:21]} 17. h4 {[%clk 0:02:22]}  Bd3 {[%clk 0:02:14]} 18. Rxa8 {[%clk 0:02:17]}  Qxa8 {[%clk 0:02:14]} 19. Bg5 {[%clk 0:02:06]}  Bxg5 {[%clk 0:02:09]} 20. Qxd3 {[%clk 0:02:04]}  Be7 {[%clk 0:02:05]} 21. Rc1 {[%clk 0:02:02]}  Rc8 {[%clk 0:02:03]} 22. Rxc8+ {[%clk 0:02:01]}  Qxc8 {[%clk 0:02:03]} 23. Bc2 {[%clk 0:01:52]}  Nf8 {[%clk 0:01:59]} 24. h5 {[%clk 0:01:47]}  Qa8 {[%clk 0:01:52]} 25. b3 {[%clk 0:01:41]}  Qa1+ {[%clk 0:01:47]} 26. Kh2 {[%clk 0:01:39]}  Qc1 {[%clk 0:01:46]} 27. Qd2 {[%clk 0:01:32]}  Qxd2 {[%clk 0:01:19]} 28. Nxd2 {[%clk 0:01:31]}  Nd7 {[%clk 0:01:19]} 29. Bd3 {[%clk 0:01:21]}  Bd8 {[%clk 0:01:11]} 30. Bb5 {[%clk 0:01:15]}  Nf8 {[%clk 0:01:10]} 31. f4 {[%clk 0:01:10]}  g6 {[%clk 0:01:06]} 32. hxg6 {[%clk 0:01:03]}  Nxg6 {[%clk 0:01:05]} 33. g3 {[%clk 0:01:02]}  Ne7 {[%clk 0:01:05]} 34. g4 {[%clk 0:00:55]}  Ng6 {[%clk 0:00:55]} 35. Kg3 {[%clk 0:00:52]}  Bh4+ {[%clk 0:00:56]} 36. Kf3 {[%clk 0:00:40]}  Be1 {[%clk 0:00:55]} 37. Nf1 {[%clk 0:00:25]}  Bc3 {[%clk 0:00:53]} 38. Ke3 {[%clk 0:00:23]}  Nh4 {[%clk 0:00:53]} 39. Kd3 {[%clk 0:00:20]}  Ng2 {[%clk 0:00:52]} 40. f5 {[%clk 0:00:19]}  Ne1+ {[%clk 0:00:50]} 41. Ke3 {[%clk 0:00:17]}  Nc2+ {[%clk 0:00:50]} 42. Kd3 {[%clk 0:00:17]}  Nxd4 {[%clk 0:00:51]} 43. Bd7 {[%clk 0:00:13]}  Kf8 {[%clk 0:00:47]} 44. Ne3 {[%clk 0:00:11]}  Ke7 {[%clk 0:00:44]} 45. Bc8 {[%clk 0:00:11]}  Nxb3 {[%clk 0:00:44]} 46. fxe6 {[%clk 0:00:09]}  fxe6 {[%clk 0:00:44]} 47. g5 {[%clk 0:00:04]}  Nc5+ {[%clk 0:00:45]} 0-1

[Event "November 21 Late 2023"]
[Site "https://www.chess.com"]
[Date "2023.11.21"]
[Round "11"]
[White "Erzhanov, Arman"]
[Black "Batsiashvili, Nino"]
[Result "1/2-1/2"]
[Board "48"]
[TimeControl "180+1"]
[WhiteFideId "4138821"]
[BlackFideId "13602993"]
[WhiteElo "2171"]
[BlackElo "2233"]
[WhiteTeam "KAZ"]
[BlackTeam "GEO"]
[WhiteClock "0:00:05"]
[BlackClock "0:00:08"]

1. e4 {[%clk 0:03:00]}  e5 {[%clk 0:02:59]} 2. Nf3 {[%clk 0:03:00]}  Nc6 {[%clk 0:02:59]} 3. Bb5 {[%clk 0:03:00]}  Nge7 {[%clk 0:02:57]} 4. O-O {[%clk 0:02:59]}  Ng6 {[%clk 0:02:56]} 5. c3 {[%clk 0:02:59]}  Be7 {[%clk 0:02:51]} 6. d4 {[%clk 0:02:59]}  O-O {[%clk 0:02:50]} 7. Re1 {[%clk 0:02:59]}  d6 {[%clk 0:02:45]} 8. h3 {[%clk 0:02:59]}  Bd7 {[%clk 0:02:44]} 9. d5 {[%clk 0:02:49]}  Nb8 {[%clk 0:02:43]} 10. Bd3 {[%clk 0:02:47]}  f5 {[%clk 0:02:35]} 11. exf5 {[%clk 0:02:47]}  Bxf5 {[%clk 0:02:36]} 12. Bxf5 {[%clk 0:02:47]}  Rxf5 {[%clk 0:02:37]} 13. Nbd2 {[%clk 0:02:46]}  Nd7 {[%clk 0:02:37]} 14. Ne4 {[%clk 0:02:47]}  Qf8 {[%clk 0:02:35]} 15. c4 {[%clk 0:02:45]}  Nf4 {[%clk 0:02:32]} 16. Bxf4 {[%clk 0:02:43]}  Rxf4 {[%clk 0:02:33]} 17. b3 {[%clk 0:02:33]}  b6 {[%clk 0:02:32]} 18. Neg5 {[%clk 0:02:28]}  Bxg5 {[%clk 0:02:30]} 19. Nxg5 {[%clk 0:02:29]}  Rxf2 {[%clk 0:02:22]} 20. Nf3 {[%clk 0:02:10]}  Rxf3 {[%clk 0:02:07]} 21. Qxf3 {[%clk 0:02:10]}  Qxf3 {[%clk 0:02:07]} 22. gxf3 {[%clk 0:02:10]}  Rf8 {[%clk 0:02:07]} 23. Kg2 {[%clk 0:02:07]}  a5 {[%clk 0:02:07]} 24. Rf1 {[%clk 0:02:05]}  Nc5 {[%clk 0:02:07]} 25. Rad1 {[%clk 0:02:03]}  g5 {[%clk 0:02:03]} 26. Kg3 {[%clk 0:02:03]}  Kg7 {[%clk 0:02:03]} 27. h4 {[%clk 0:02:02]}  h6 {[%clk 0:02:03]} 28. hxg5 {[%clk 0:02:02]}  hxg5 {[%clk 0:02:04]} 29. Rh1 {[%clk 0:02:00]}  Kg6 {[%clk 0:02:03]} 30. Rh2 {[%clk 0:02:00]}  e4 {[%clk 0:02:03]} 31. Rf2 {[%clk 0:01:26]}  Rf4 {[%clk 0:01:55]} 32. Rff1 {[%clk 0:01:15]}  Kf5 {[%clk 0:01:45]} 33. Kg2 {[%clk 0:01:13]}  Ke5 {[%clk 0:01:20]} 34. fxe4 {[%clk 0:01:11]}  Kxe4 {[%clk 0:01:18]} 35. Rfe1+ {[%clk 0:01:05]}  Kf5 {[%clk 0:01:16]} 36. Re7 {[%clk 0:01:05]}  Na6 {[%clk 0:01:16]} 37. Rf1 {[%clk 0:00:51]}  Rxf1 {[%clk 0:01:15]} 38. Kxf1 {[%clk 0:00:51]}  Kf6 {[%clk 0:01:15]} 39. Rh7 {[%clk 0:00:48]}  Ke5 {[%clk 0:01:14]} 40. Ke2 {[%clk 0:00:48]}  Kd4 {[%clk 0:01:13]} 41. Kd2 {[%clk 0:00:42]}  a4 {[%clk 0:01:13]} 42. Rg7 {[%clk 0:00:39]}  a3 {[%clk 0:01:07]} 43. Kc2 {[%clk 0:00:34]}  b5 {[%clk 0:00:50]} 44. cxb5 {[%clk 0:00:28]}  Nb4+ {[%clk 0:00:50]} 45. Kb1 {[%clk 0:00:29]}  Nxd5 {[%clk 0:00:51]} 46. Rxg5 {[%clk 0:00:26]}  Nc3+ {[%clk 0:00:48]} 47. Ka1 {[%clk 0:00:26]}  d5 {[%clk 0:00:49]} 48. Rg4+ {[%clk 0:00:20]}  Kc5 {[%clk 0:00:48]} 49. Rg3 {[%clk 0:00:19]}  Nxb5 {[%clk 0:00:48]} 50. Kb1 {[%clk 0:00:19]}  d4 {[%clk 0:00:48]} 51. Kc2 {[%clk 0:00:19]}  Nc3 {[%clk 0:00:47]} 52. Rg5+ {[%clk 0:00:19]}  Kb4 {[%clk 0:00:47]} 53. Rg7 {[%clk 0:00:18]}  c6 {[%clk 0:00:28]} 54. Rb7+ {[%clk 0:00:17]}  Kc5 {[%clk 0:00:27]} 55. Ra7 {[%clk 0:00:16]}  Nxa2 {[%clk 0:00:27]} 56. Rxa3 {[%clk 0:00:16]}  Nb4+ {[%clk 0:00:27]} 57. Kd2 {[%clk 0:00:16]}  Kb5 {[%clk 0:00:26]} 58. Ra8 {[%clk 0:00:16]}  c5 {[%clk 0:00:26]} 59. Rb8+ {[%clk 0:00:15]}  Kc6 {[%clk 0:00:26]} 60. Rc8+ {[%clk 0:00:16]}  Kd5 {[%clk 0:00:27]} 61. Rd8+ {[%clk 0:00:16]}  Kc6 {[%clk 0:00:27]} 62. Rh8 {[%clk 0:00:16]}  Kb5 {[%clk 0:00:27]} 63. Rb8+ {[%clk 0:00:16]}  Kc6 {[%clk 0:00:27]} 64. Ra8 {[%clk 0:00:16]}  Kb6 {[%clk 0:00:26]} 65. Rd8 {[%clk 0:00:16]}  Nc6 {[%clk 0:00:23]} 66. Rh8 {[%clk 0:00:10]}  Kb5 {[%clk 0:00:24]} 67. Rh6 {[%clk 0:00:10]}  Na5 {[%clk 0:00:18]} 68. Kc2 {[%clk 0:00:10]}  Nc6 {[%clk 0:00:14]} 69. Rd6 {[%clk 0:00:08]}  Nb4+ {[%clk 0:00:11]} 70. Kb2 {[%clk 0:00:08]}  Ka5 {[%clk 0:00:10]} 71. Ka3 {[%clk 0:00:08]}  Kb5 {[%clk 0:00:10]} 72. Kb2 {[%clk 0:00:08]}  Ka5 {[%clk 0:00:10]} 73. Rd8 {[%clk 0:00:08]}  Kb5 {[%clk 0:00:11]} 74. Rb8+ {[%clk 0:00:08]}  Kc6 {[%clk 0:00:12]} 75. Rc8+ {[%clk 0:00:08]}  Kd5 {[%clk 0:00:12]} 76. Ka3 {[%clk 0:00:07]}  d3 {[%clk 0:00:10]} 77. Kb2 {[%clk 0:00:07]}  Kd4 {[%clk 0:00:10]} 78. Rd8+ {[%clk 0:00:07]}  Ke3 {[%clk 0:00:11]} 79. Re8+ {[%clk 0:00:06]}  Kd2 {[%clk 0:00:11]} 80. Rc8 {[%clk 0:00:05]}  Ke1 {[%clk 0:00:08]} 81. Re8+ {[%clk 0:00:02]}  Kd1 {[%clk 0:00:08]} 82. Rc8 {[%clk 0:00:02]}  d2 {[%clk 0:00:08]} 83. Rxc5 {[%clk 0:00:02]}  Ke2 {[%clk 0:00:08]} 84. Re5+ {[%clk 0:00:02]}  Kd3 {[%clk 0:00:07]} 85. Re8 {[%clk 0:00:02]}  d1=Q {[%clk 0:00:06]} 86. Rd8+ {[%clk 0:00:03]}  Ke2 {[%clk 0:00:06]} 87. Rxd1 {[%clk 0:00:03]}  Kxd1 {[%clk 0:00:07]} 88. Ka3 {[%clk 0:00:04]}  Nc2+ {[%clk 0:00:07]} 89. Ka4 {[%clk 0:00:04]}  Kd2 {[%clk 0:00:08]} 90. b4 {[%clk 0:00:05]}  Nxb4 {[%clk 0:00:08]} 1/2-1/2

[Event "November 21 Late 2023"]
[Site "https://www.chess.com"]
[Date "2023.11.21"]
[Round "11"]
[White "Hajiyev, Kanan"]
[Black "Silvestre, Christian"]
[Result "1-0"]
[Board "49"]
[TimeControl "180+1"]
[WhiteFideId "13404148"]
[BlackFideId "30956269"]
[WhiteElo "2102"]
[BlackElo "2361"]
[WhiteTeam "AZE"]
[BlackTeam "USA"]
[WhiteClock "0:00:21"]
[BlackClock "0:00:00"]

1. d4 {[%clk 0:02:48]}  e5 {[%clk 0:02:59]} 2. Nf3 {[%clk 0:02:49]}  exd4 {[%clk 0:02:58]} 3. Nxd4 {[%clk 0:02:49]}  Nf6 {[%clk 0:02:57]} 4. c4 {[%clk 0:02:48]}  g6 {[%clk 0:02:56]} 5. Nc3 {[%clk 0:02:49]}  Bg7 {[%clk 0:02:56]} 6. e3 {[%clk 0:02:49]}  O-O {[%clk 0:02:56]} 7. Be2 {[%clk 0:02:50]}  d5 {[%clk 0:02:56]} 8. O-O {[%clk 0:02:49]}  dxc4 {[%clk 0:02:55]} 9. Bxc4 {[%clk 0:02:50]}  a6 {[%clk 0:02:50]} 10. b3 {[%clk 0:02:50]}  c5 {[%clk 0:02:48]} 11. Nde2 {[%clk 0:02:48]}  b5 {[%clk 0:02:48]} 12. Bd3 {[%clk 0:02:44]}  Bb7 {[%clk 0:02:33]} 13. Bb2 {[%clk 0:02:43]}  Nc6 {[%clk 0:02:32]} 14. Nf4 {[%clk 0:02:31]}  Qa5 {[%clk 0:02:15]} 15. Qe2 {[%clk 0:02:21]}  Rfe8 {[%clk 0:02:08]} 16. Rfd1 {[%clk 0:02:10]}  Ne5 {[%clk 0:01:53]} 17. Bc2 {[%clk 0:01:58]}  Qc7 {[%clk 0:01:47]} 18. a4 {[%clk 0:01:39]}  b4 {[%clk 0:01:41]} 19. Ncd5 {[%clk 0:01:40]}  Nxd5 {[%clk 0:01:40]} 20. Nxd5 {[%clk 0:01:41]}  Qc6 {[%clk 0:01:25]} 21. Be4 {[%clk 0:01:27]}  Kh8 {[%clk 0:01:12]} 22. Nf6 {[%clk 0:00:54]}  Qxf6 {[%clk 0:01:07]} 23. Bxb7 {[%clk 0:00:54]}  Rab8 {[%clk 0:00:44]} 24. Bd5 {[%clk 0:00:48]}  Nf3+ {[%clk 0:00:39]} 25. Qxf3 {[%clk 0:00:42]}  Qxf3 {[%clk 0:00:35]} 26. gxf3 {[%clk 0:00:42]}  Bxb2 {[%clk 0:00:33]} 27. Rab1 {[%clk 0:00:40]}  Bc3 {[%clk 0:00:30]} 28. Bxf7 {[%clk 0:00:41]}  Rf8 {[%clk 0:00:28]} 29. Bd5 {[%clk 0:00:40]}  Rbd8 {[%clk 0:00:28]} 30. f4 {[%clk 0:00:38]}  a5 {[%clk 0:00:28]} 31. Kg2 {[%clk 0:00:36]}  Kg7 {[%clk 0:00:29]} 32. Kg3 {[%clk 0:00:36]}  Kf6 {[%clk 0:00:30]} 33. h4 {[%clk 0:00:36]}  h6 {[%clk 0:00:29]} 34. Kg4 {[%clk 0:00:36]}  Rd6 {[%clk 0:00:22]} 35. e4 {[%clk 0:00:36]}  Ke7 {[%clk 0:00:20]} 36. e5 {[%clk 0:00:36]}  Rdd8 {[%clk 0:00:19]} 37. Be4 {[%clk 0:00:32]}  Rd4 {[%clk 0:00:15]} 38. Rxd4 {[%clk 0:00:29]}  cxd4 {[%clk 0:00:12]} 39. Bxg6 {[%clk 0:00:30]}  Ke6 {[%clk 0:00:10]} 40. Be4 {[%clk 0:00:27]}  Rg8+ {[%clk 0:00:07]} 41. Kf3 {[%clk 0:00:25]}  Rf8 {[%clk 0:00:06]} 42. Rg1 {[%clk 0:00:23]}  Bd2 {[%clk 0:00:06]} 43. Rg6+ {[%clk 0:00:20]}  Ke7 {[%clk 0:00:00]} 44. f5 {[%clk 0:00:21]} 1-0

[Event "November 21 Late 2023"]
[Site "https://www.chess.com"]
[Date "2023.11.21"]
[Round "11"]
[White "ATM622"]
[Black "Gimenez Aguirre, Alejo Ismael"]
[Result "0-1"]
[Board "51"]
[TimeControl "180+1"]
[BlackFideId "32041667"]
[WhiteElo "2465"]
[BlackElo "2165"]
[BlackTeam "ARG"]
[WhiteClock "0:00:01"]
[BlackClock "0:00:58"]

1. d4 {[%clk 0:03:00]}  Nf6 {[%clk 0:02:59]} 2. c4 {[%clk 0:03:00]}  e6 {[%clk 0:03:00]} 3. g3 {[%clk 0:03:00]}  Bb4+ {[%clk 0:03:00]} 4. Nd2 {[%clk 0:03:00]}  O-O {[%clk 0:03:00]} 5. Bg2 {[%clk 0:03:00]}  c5 {[%clk 0:03:00]} 6. d5 {[%clk 0:03:00]}  exd5 {[%clk 0:03:00]} 7. cxd5 {[%clk 0:03:00]}  d6 {[%clk 0:03:00]} 8. a3 {[%clk 0:03:00]}  Ba5 {[%clk 0:03:00]} 9. Rb1 {[%clk 0:02:42]}  Bf5 {[%clk 0:02:57]} 10. Ra1 {[%clk 0:02:40]}  Re8 {[%clk 0:02:47]} 11. Nf3 {[%clk 0:02:19]}  Nxd5 {[%clk 0:02:45]} 12. O-O {[%clk 0:02:19]}  Nc6 {[%clk 0:02:42]} 13. Nc4 {[%clk 0:02:13]}  Be4 {[%clk 0:02:39]} 14. Nh4 {[%clk 0:02:07]}  Bxg2 {[%clk 0:02:38]} 15. Kxg2 {[%clk 0:02:07]}  Nf6 {[%clk 0:02:35]} 16. Nxd6 {[%clk 0:01:57]}  Rxe2 {[%clk 0:02:35]} 17. Qxe2 {[%clk 0:01:44]}  Qxd6 {[%clk 0:02:34]} 18. Bf4 {[%clk 0:01:38]}  Qd7 {[%clk 0:02:30]} 19. Rad1 {[%clk 0:01:30]}  Nd4 {[%clk 0:02:30]} 20. Qc4 {[%clk 0:01:20]}  Qc6+ {[%clk 0:02:18]} 21. f3 {[%clk 0:01:19]}  h6 {[%clk 0:02:17]} 22. b4 {[%clk 0:01:15]}  Bb6 {[%clk 0:01:55]} 23. bxc5 {[%clk 0:01:14]}  Qxc5 {[%clk 0:01:55]} 24. Qxc5 {[%clk 0:01:06]}  Bxc5 {[%clk 0:01:55]} 25. Be3 {[%clk 0:00:59]}  Ne6 {[%clk 0:01:54]} 26. Bxc5 {[%clk 0:00:59]}  Nxc5 {[%clk 0:01:55]} 27. Nf5 {[%clk 0:00:56]}  b6 {[%clk 0:01:49]} 28. Rfe1 {[%clk 0:00:52]}  Kf8 {[%clk 0:01:41]} 29. g4 {[%clk 0:00:52]}  Rc8 {[%clk 0:01:33]} 30. h4 {[%clk 0:00:40]}  Ne6 {[%clk 0:01:33]} 31. Kg3 {[%clk 0:00:32]}  Rc3 {[%clk 0:01:30]} 32. Rc1 {[%clk 0:00:26]}  Ne4+ {[%clk 0:01:19]} 33. Kh2 {[%clk 0:00:19]}  Rxc1 {[%clk 0:01:14]} 34. Rxc1 {[%clk 0:00:19]}  N4c5 {[%clk 0:01:15]} 35. Kg3 {[%clk 0:00:13]}  h5 {[%clk 0:01:16]} 36. Nd6 {[%clk 0:00:10]}  g6 {[%clk 0:01:14]} 37. Nc8 {[%clk 0:00:10]}  Nd4 {[%clk 0:01:12]} 38. Rd1 {[%clk 0:00:08]}  Ne2+ {[%clk 0:01:12]} 39. Kf2 {[%clk 0:00:08]}  Nf4 {[%clk 0:01:13]} 40. Nxa7 {[%clk 0:00:05]}  Nfd3+ {[%clk 0:01:10]} 41. Ke3 {[%clk 0:00:05]}  Ne5 {[%clk 0:01:08]} 42. gxh5 {[%clk 0:00:05]}  gxh5 {[%clk 0:01:08]} 43. Kf4 {[%clk 0:00:05]}  Ng6+ {[%clk 0:01:06]} 44. Kg5 {[%clk 0:00:05]}  Ne6+ {[%clk 0:01:06]} 45. Kf6 {[%clk 0:00:05]}  Ngf4 {[%clk 0:01:03]} 46. Ke5 {[%clk 0:00:05]}  Ng2 {[%clk 0:01:02]} 47. Rg1 {[%clk 0:00:04]}  Nxh4 {[%clk 0:01:02]} 48. Ke4 {[%clk 0:00:03]}  Nc5+ {[%clk 0:01:01]} 49. Ke3 {[%clk 0:00:04]}  Nf5+ {[%clk 0:01:00]} 50. Kf4 {[%clk 0:00:04]}  Nd4 {[%clk 0:01:01]} 51. Nc8 {[%clk 0:00:03]}  Ne2+ {[%clk 0:01:01]} 52. Ke3 {[%clk 0:00:03]}  Nxg1 {[%clk 0:01:02]} 53. Nxb6 {[%clk 0:00:04]}  h4 {[%clk 0:01:00]} 54. Kf2 {[%clk 0:00:03]}  Nh3+ {[%clk 0:01:01]} 55. Ke3 {[%clk 0:00:03]}  Ng5 {[%clk 0:01:01]} 56. a4 {[%clk 0:00:02]}  h3 {[%clk 0:01:01]} 57. Kf2 {[%clk 0:00:02]}  f5 {[%clk 0:01:00]} 58. f4 {[%clk 0:00:02]}  Nce4+ {[%clk 0:00:59]} 59. Kg1 {[%clk 0:00:02]}  Nf3+ {[%clk 0:00:59]} 60. Kh1 {[%clk 0:00:01]}  Ng3# {[%clk 0:00:58]} 0-1

[Event "November 21 Late 2023"]
[Site "https://www.chess.com"]
[Date "2023.11.21"]
[Round "11"]
[White "Marcziter, Dmitrii"]
[Black "Koksal, Ege"]
[Result "0-1"]
[Board "54"]
[TimeControl "180+1"]
[WhiteFideId "13900765"]
[BlackFideId "6317626"]
[WhiteElo "2142"]
[BlackElo "2230"]
[WhiteTeam "GER"]
[BlackTeam "TUR"]
[WhiteClock "0:00:14"]
[BlackClock "0:00:33"]

1. d4 {[%clk 0:03:00]}  Nf6 {[%clk 0:02:59]} 2. c4 {[%clk 0:03:00]}  e6 {[%clk 0:02:59]} 3. Nf3 {[%clk 0:02:59]}  d5 {[%clk 0:02:58]} 4. Nc3 {[%clk 0:02:59]}  c6 {[%clk 0:02:58]} 5. Bg5 {[%clk 0:02:58]}  h6 {[%clk 0:02:59]} 6. Bxf6 {[%clk 0:02:58]}  Qxf6 {[%clk 0:03:00]} 7. e3 {[%clk 0:02:58]}  Nd7 {[%clk 0:02:58]} 8. Qb3 {[%clk 0:02:58]}  g6 {[%clk 0:02:57]} 9. Rd1 {[%clk 0:02:56]}  Bg7 {[%clk 0:02:57]} 10. Be2 {[%clk 0:02:56]}  O-O {[%clk 0:02:57]} 11. e4 {[%clk 0:02:53]}  dxc4 {[%clk 0:02:53]} 12. Bxc4 {[%clk 0:02:50]}  e5 {[%clk 0:02:53]} 13. dxe5 {[%clk 0:02:42]}  Nxe5 {[%clk 0:02:53]} 14. Nxe5 {[%clk 0:02:42]}  Qxe5 {[%clk 0:02:54]} 15. O-O {[%clk 0:02:41]}  b5 {[%clk 0:02:53]} 16. Be2 {[%clk 0:02:36]}  Be6 {[%clk 0:02:53]} 17. Qc2 {[%clk 0:02:35]}  Qc5 {[%clk 0:02:48]} 18. a3 {[%clk 0:02:25]}  a5 {[%clk 0:02:48]} 19. Qd2 {[%clk 0:02:18]}  Qb6 {[%clk 0:02:16]} 20. Qf4 {[%clk 0:02:10]}  Rad8 {[%clk 0:02:14]} 21. h3 {[%clk 0:02:07]}  Bb3 {[%clk 0:02:09]} 22. Rxd8 {[%clk 0:02:00]}  Rxd8 {[%clk 0:02:10]} 23. Re1 {[%clk 0:01:46]}  Qd4 {[%clk 0:02:07]} 24. Bd1 {[%clk 0:01:34]}  Bc4 {[%clk 0:01:55]} 25. Bg4 {[%clk 0:01:11]}  Qd2 {[%clk 0:01:48]} 26. Qxd2 {[%clk 0:01:02]}  Rxd2 {[%clk 0:01:49]} 27. Rb1 {[%clk 0:01:02]}  b4 {[%clk 0:01:31]} 28. axb4 {[%clk 0:01:01]}  axb4 {[%clk 0:01:32]} 29. Na4 {[%clk 0:00:58]}  Bd3 {[%clk 0:01:10]} 30. Re1 {[%clk 0:00:55]}  Bxb2 {[%clk 0:01:08]} 31. Nxb2 {[%clk 0:00:52]}  Rxb2 {[%clk 0:01:09]} 32. e5 {[%clk 0:00:51]}  h5 {[%clk 0:00:52]} 33. e6 {[%clk 0:00:51]}  fxe6 {[%clk 0:00:46]} 34. Bxe6+ {[%clk 0:00:50]}  Kg7 {[%clk 0:00:46]} 35. Bd7 {[%clk 0:00:46]}  Rb1 {[%clk 0:00:38]} 36. Rxb1 {[%clk 0:00:44]}  Bxb1 {[%clk 0:00:39]} 37. Bxc6 {[%clk 0:00:44]}  b3 {[%clk 0:00:39]} 38. Bd5 {[%clk 0:00:36]}  b2 {[%clk 0:00:38]} 39. h4 {[%clk 0:00:27]}  Kf6 {[%clk 0:00:38]} 40. f3 {[%clk 0:00:26]}  Ke5 {[%clk 0:00:37]} 41. Bf7 {[%clk 0:00:24]}  Bf5 {[%clk 0:00:35]} 42. Kf2 {[%clk 0:00:14]}  b1=Q {[%clk 0:00:33]} 0-1

[Event "November 21 Late 2023"]
[Site "https://www.chess.com"]
[Date "2023.11.21"]
[Round "11"]
[White "Tikhonov, Viacheslav"]
[Black "Kostiukov, Alexandr"]
[Result "1-0"]
[Board "56"]
[TimeControl "180+1"]
[WhiteFideId "44196407"]
[BlackFideId "14108100"]
[WhiteElo "2191"]
[BlackElo "2144"]
[WhiteTeam "RUS"]
[BlackTeam "UKR"]
[WhiteClock "0:00:16"]
[BlackClock "0:00:32"]

1. e4 {[%clk 0:03:00]}  c5 {[%clk 0:02:46]} 2. Nf3 {[%clk 0:02:57]}  g6 {[%clk 0:02:46]} 3. d4 {[%clk 0:02:49]}  cxd4 {[%clk 0:02:45]} 4. Nxd4 {[%clk 0:02:50]}  Bg7 {[%clk 0:02:45]} 5. c4 {[%clk 0:02:51]}  Nc6 {[%clk 0:02:45]} 6. Be3 {[%clk 0:02:49]}  Nf6 {[%clk 0:02:45]} 7. Nc3 {[%clk 0:02:49]}  Nxd4 {[%clk 0:02:45]} 8. Bxd4 {[%clk 0:02:49]}  Qa5 {[%clk 0:02:45]} 9. Qd2 {[%clk 0:02:43]}  Nxe4 {[%clk 0:02:44]} 10. Qd3 {[%clk 0:02:23]}  Bxd4 {[%clk 0:02:16]} 11. Qxd4 {[%clk 0:02:24]}  Nf6 {[%clk 0:02:08]} 12. O-O-O {[%clk 0:02:14]}  O-O {[%clk 0:02:05]} 13. Be2 {[%clk 0:02:08]}  d6 {[%clk 0:02:05]} 14. Kb1 {[%clk 0:02:02]}  Be6 {[%clk 0:01:52]} 15. h4 {[%clk 0:01:55]}  h5 {[%clk 0:01:50]} 16. f3 {[%clk 0:01:53]}  Qe5 {[%clk 0:01:36]} 17. Qd2 {[%clk 0:01:39]}  Rfc8 {[%clk 0:01:29]} 18. b3 {[%clk 0:01:34]}  a6 {[%clk 0:01:24]} 19. Na4 {[%clk 0:01:16]}  Bf5+ {[%clk 0:01:11]} 20. Bd3 {[%clk 0:01:15]}  Bxd3+ {[%clk 0:01:02]} 21. Qxd3 {[%clk 0:01:15]}  Rab8 {[%clk 0:01:00]} 22. Rhe1 {[%clk 0:01:13]}  Qg3 {[%clk 0:00:56]} 23. Rxe7 {[%clk 0:01:09]}  Qxg2 {[%clk 0:00:51]} 24. Nb6 {[%clk 0:01:03]}  Rd8 {[%clk 0:00:47]} 25. Nd5 {[%clk 0:00:41]}  Nd7 {[%clk 0:00:44]} 26. Rxd7 {[%clk 0:00:36]}  Rxd7 {[%clk 0:00:40]} 27. Nf6+ {[%clk 0:00:36]}  Kg7 {[%clk 0:00:39]} 28. Nxd7 {[%clk 0:00:37]}  Rd8 {[%clk 0:00:36]} 29. Qd4+ {[%clk 0:00:35]}  Kh6 {[%clk 0:00:36]} 30. Qf4+ {[%clk 0:00:17]}  Kg7 {[%clk 0:00:34]} 31. Qf6+ {[%clk 0:00:17]}  Kg8 {[%clk 0:00:32]} 32. Qxd8+ {[%clk 0:00:16]} 1-0